lending/lending_fUSD_20250102
["ID","MTS","AMOUNT","RATE_DAILY","PERIOD"]
[347477255,1735854642964,-1836.16629,9.614e-05,2]
[347477256,1735854642977,-679.30499915,9.614e-05,2]
[347477257,1735854642990,-1868.53283797,9.614e-05,2]
[347477258,1735854643003,-1938.45550524,9.614e-05,2]
[347477259,1735854643027,-445.10019242,9.614e-05,2]
[347477260,1735854643040,-282.07,9.614e-05,2]
[347477261,1735854643052,-463.59,9.614e-05,2]
[347477262,1735854643064,-1132.21983791,9.614e-05,2]
[347477263,1735854643091,-272.31790376,9.614e-05,2]
[347477264,1735854643118,-6224.08578409,9.614e-05,2]
[347477265,1735854643130,-241350.000005,9.614e-05,2]
[347477266,1735854643150,-5254.82045504,9.614e-05,2]
[347477267,1735854643214,-74552.24274399,9.614e-05,2]
[347477268,1735854643232,-572.4865023,9.614e-05,2]
[347477269,1735854645847,-4848.3864252,9.614e-05,2]
[347477270,1735854645861,-9719.152,9.614e-05,2]
[347477271,1735854645875,-4507.18095193,9.614e-05,2]
[347477272,1735854645888,-3465.46992,9.614e-05,2]
[347477273,1735854646072,-29599.9998,9.614e-05,2]
[347477274,1735854646084,-68973.200001,9.614e-05,2]
[347477275,1735854646130,-24832.78590849,9.614e-05,2]
[347477276,1735854723645,165.42,9.375e-05,2]
[347477277,1735854749216,154.503,9.13e-05,2]
[347477279,1735854784121,176.92,7.397e-05,2]
[347477280,1735854799632,2300.0,8.22e-05,2]
[347477281,1735854800400,1100.0,8.22e-05,2]
[347477282,1735854801219,2300.0,9.59e-05,2]
[347477283,1735854802073,1100.0,9.59e-05,2]
[347477284,1735854804382,8280.922007,9.514e-05,2]
[347477285,1735854804426,2478.433393,9.514e-05,2]
[347477286,1735854849611,500.0,8.22e-05,2]
[347477287,1735854853341,5000.0,9.514e-05,2]
[347477288,1735854902608,4810.0,9.589e-05,2]
[347477289,1735854903575,42900.0,9.589e-05,2]
[347477290,1735854948555,100330.9374,9.514e-05,2]
[347477291,1735855003501,500.0,9.514e-05,2]
[347477292,1735855015963,1000.0,9.514e-05,2]
[347477293,1735855031477,250.0,9.034e-05,2]
[347477294,1735855040232,4482.5254,9.514e-05,2]
[347477295,1735855041313,165.74,9.042e-05,2]
[347477296,1735855052820,55555.0,9.514e-05,2]
[347477297,1735855072949,500.0,9.593e-05,2]
[347477298,1735855082771,159.93064945,9.593e-05,2]
[347477299,1735855144974,200.0,9.009e-05,2]
[347477300,1735855175439,16837.47046872,9.57e-05,2]
[347477301,1735855176945,250.0,9.009e-05,2]
[347477302,1735855200277,250.0,9.009e-05,2]
[347477303,1735855219558,285.22477492,9.522e-05,2]
[347477304,1735855248539,1184.54,9.021e-05,2]
[347477305,1735855261634,41878.84867039,9.52e-05,2]
[347477306,1735855289655,164.45,7.199e-05,2]
[347477307,1735855289859,164.45,8.999e-05,2]
[347477308,1735855295203,473.7,9.6e-05,2]
[347477309,1735855309760,1399.54,8.219e-05,2]
[347477310,1735855425152,155.886,9.13e-05,2]
[347477311,1735855525389,23890.0,8.975e-05,2]
[347477312,1735855554265,239.44,8.991e-05,2]
[347477313,1735855573564,1000.0,8.971e-05,2]
[347477314,1735855594047,186.01,9.237e-05,2]
[347477315,1735855678206,1000.0,9.6e-05,2]
[347477316,1735855697549,176.92,7.397e-05,2]
[347477325,1735855832028,-1057.0,9.606e-05,2]
[347477326,1735855832038,-6819.50979678,9.613e-05,2]
[347477327,1735855832048,-1096.86207807,9.613e-05,2]
[347477328,1735855832124,-9354.56863464,9.613e-05,2]
[347477329,1735855832134,-507.3,9.613e-05,2]
[347477330,1735855832144,-676.05114348,9.613e-05,2]
[347477331,1735855832153,-631.0,9.614e-05,2]
[347477332,1735855832163,-292.20388748,9.614e-05,2]
[347477333,1735855832173,-97157.20022345,9.614e-05,2]
[347477334,1735855832184,-6971.28280039,9.614e-05,2]
[347477335,1735855832195,-16096.21204286,9.614e-05,2]
[347477336,1735855832207,-1780.904326,9.614e-05,2]
[347477337,1735855832218,-983.98137964,9.614e-05,2]
[347477338,1735855832355,-644.09341669,9.614e-05,2]
[347477339,1735855832367,-6497.1886532,9.614e-05,2]
[347477340,1735855832379,-646.9888024,9.614e-05,2]
[347477341,1735855832390,-3234.59175643,9.614e-05,2]
[347477342,1735855832401,-1244.15535,9.614e-05,2]
[347477343,1735855832413,-1303.491325,9.614e-05,2]
[347477344,1735855832424,-380.0,9.614e-05,2]
[347477345,1735855832497,-503.89825629,9.614e-05,2]
[347477346,1735855832508,-1209.496,9.614e-05,2]
[347477347,1735855832519,-20395.9,9.614e-05,2]
[347477584,1735855837946,-9780.7,9.614e-05,2]
[347477585,1735855837958,-1990.25192424,9.614e-05,2]
[347477586,1735855837970,-20780.54390345,9.614e-05,2]
[347477587,1735855837987,-25123.0463099,9.614e-05,2]
[347477588,1735855837999,-6596.03655,9.614e-05,2]
[347477589,1735855838011,-544.99900001,9.614e-05,2]
[347477590,1735855838023,-4781.96794611,9.614e-05,2]
[347477591,1735855838034,-1920.55029064,9.614e-05,2]
[347477592,1735855838059,-12893.8938511,9.614e-05,2]
[347477593,1735855838083,-76343.34872311,9.614e-05,2]
[347477594,1735855838094,-752.655,9.614e-05,2]
[347477595,1735855838105,-375.13799864,9.614e-05,2]
[347477596,1735855838116,-1085.54122135,9.614e-05,2]
[347477597,1735855838140,-74259.3599999,9.614e-05,2]
[347477598,1735855838151,-530487.49342611,9.614e-05,2]
[347477599,1735855838162,-371.8009997,9.614e-05,2]
[347477600,1735855838173,-4151.20351629,9.614e-05,2]
[347477601,1735855838186,-532.5,9.614e-05,2]
[347477602,1735855838197,-89645.70050052,9.614e-05,2]
[347477603,1735855838227,-4776.88947418,9.614e-05,2]
[347477604,1735855838238,-3212.72027962,9.614e-05,2]
[347477605,1735855838249,-1022.466,9.614e-05,2]
[347477606,1735855838260,-18610.24580852,9.614e-05,2]
[347477607,1735855838271,-3779.0,9.614e-05,2]
[347477608,1735855838283,-2060.0,9.614e-05,2]
[347477609,1735855838307,-510937.30982537,9.614e-05,2]
[347477610,1735855838356,-190808.82844003,9.614e-05,2]
[347477611,1735855838367,-36108.9073469,9.614e-05,2]
[347477656,1735855840102,-2966.56148976,9.614e-05,2]
[347477657,1735855840113,-1838.98851024,9.614e-05,2]
[347477658,1735855840359,-344.73000001,9.614e-05,2]
[347477667,1735855863067,4098.79,9.054e-05,2]
[347477668,1735855895595,20112.0,9.518e-05,2]
[347477669,1735855907236,5000.0,9.514e-05,2]
[347477672,1735855969982,1000.0,9.514e-05,2]
[347477673,1735855992896,150.010307,0.0002,120]
[347477674,1735855993830,150.010307,0.0002,120]
[347477675,1735855994291,150.010307,0.0002,120]
[347477676,1735855994856,150.010307,0.0002,120]
[347477677,1735855994940,160.829,9.13e-05,2]
[347477678,1735855995302,150.010307,0.0002,120]
[347477679,1735855995639,150.010307,0.0002,120]
[347477680,1735855996039,150.010307,0.0002,120]
[347477681,1735855996471,150.010307,0.0002,120]
[347477682,1735855996891,150.010307,0.0002,120]
[347477683,1735855997487,150.010307,0.0002,120]
[347477684,1735855997769,150.010307,0.0002,120]
[347477685,1735855998181,150.010307,0.0002,120]
[347477687,1735855998675,150.010307,0.0002,120]
[347477688,1735855999001,150.010307,0.0002,120]
[347477689,1735855999517,150.010307,0.0002,120]
[347477690,1735855999837,150.010307,0.0002,120]
[347477691,1735856000297,150.010307,0.0002,120]
[347477692,1735856000715,150.010307,0.0002,120]
[347477693,1735856001552,150.010307,0.0002,120]
[347477694,1735856002056,150.010307,0.0002,120]
[347477695,1735856002294,150.010307,0.0002,120]
[347477696,1735856002514,150.010307,0.0002,120]
[347477697,1735856002842,150.010307,0.0002,120]
[347477698,1735856003251,150.010307,0.0002,120]
[347477699,1735856003658,150.010307,0.0002,120]
[347477700,1735856004052,150.010307,0.0002,120]
[347477701,1735856004461,150.010307,0.0002,120]
[347477702,1735856004858,150.010307,0.0002,120]
[347477703,1735856005265,150.010307,0.0002,120]
[347477704,1735856005474,55555.0,9.514e-05,2]
[347477705,1735856005684,150.010307,0.0002,120]
[347477706,1735856006598,150.010307,0.0002,120]
[347477707,1735856006946,150.010307,0.0002,120]
[347477708,1735856007458,150.010307,0.0002,120]
[347477709,1735856007886,150.010307,0.0002,120]
[347477710,1735856008323,150.010307,0.0002,120]
[347477711,1735856008739,150.010307,0.0002,120]
[347477712,1735856009158,150.010307,0.0002,120]
[347477713,1735856009609,150.010307,0.0002,120]
[347477714,1735856010054,150.010307,0.0002,120]
[347477715,1735856010487,150.010307,0.0002,120]
[347477716,1735856010927,150.010307,0.0002,120]
[347477717,1735856012134,150.010307,0.0002,120]
[347477718,1735856012322,150.010307,0.0002,120]
[347477719,1735856012570,150.010307,0.0002,120]
[347477720,1735856012775,150.010307,0.0002,120]
[347477721,1735856012946,150.010307,0.0002,120]
[347477722,1735856012996,2300.0,8.22e-05,2]
[347477723,1735856013211,150.010307,0.0002,120]
[347477724,1735856013678,150.010307,0.0002,120]
[347477725,1735856014148,150.010307,0.0002,120]
[347477726,1735856014577,150.010307,0.0002,120]
[347477727,1735856014815,2300.0,9.59e-05,2]
[347477728,1735856015376,150.010307,0.0002,120]
[347477729,1735856015532,150.010307,0.0002,120]
[347477730,1735856015814,150.010307,0.0002,120]
[347477731,1735856016387,150.010307,0.0002,120]
[347477732,1735856016719,150.010307,0.0002,120]
[347477733,1735856017245,150.010307,0.0002,120]
[347477734,1735856017616,150.010307,0.0002,120]
[347477735,1735856018043,150.010307,0.0002,120]
[347477736,1735856018475,150.010307,0.0002,120]
[347477737,1735856018880,150.010307,0.0002,120]
[347477738,1735856019306,150.010307,0.0002,120]
[347477739,1735856019733,150.010307,0.0002,120]
[347477740,1735856020330,150.010307,0.0002,120]
[347477741,1735856020592,150.010307,0.0002,120]
[347477742,1735856021033,150.010307,0.0002,120]
[347477743,1735856021467,150.010307,0.0002,120]
[347477744,1735856021889,150.010307,0.0002,120]
[347477745,1735856022692,150.010307,0.0002,120]
[347477746,1735856023485,150.010307,0.0002,120]
[347477747,1735856023800,150.010307,0.0002,120]
[347477748,1735856023998,150.010307,0.0002,120]
[347477749,1735856024333,150.010307,0.0002,120]
[347477750,1735856024543,150.010307,0.0002,120]
[347477751,1735856024961,150.010307,0.0002,120]
[347477752,1735856025364,150.010307,0.0002,120]
[347477753,1735856025794,150.010307,0.0002,120]
[347477754,1735856026178,150.010307,0.0002,120]
[347477755,1735856026607,150.010307,0.0002,120]
[347477756,1735856027021,150.010307,0.0002,120]
[347477757,1735856027488,150.010307,0.0002,120]
[347477758,1735856028156,150.010307,0.0002,120]
[347477759,1735856028339,150.010307,0.0002,120]
[347477760,1735856028758,150.010307,0.0002,120]
[347477761,1735856029195,150.010307,0.0002,120]
[347477762,1735856029709,150.010307,0.0002,120]
[347477763,1735856030044,150.010307,0.0002,120]
[347477764,1735856030452,150.010307,0.0002,120]
[347477765,1735856030906,150.010307,0.0002,120]
[347477766,1735856031503,150.010307,0.0002,120]
[347477767,1735856031813,150.010307,0.0002,120]
[347477768,1735856032194,150.010307,0.0002,120]
[347477769,1735856033396,150.010307,0.0002,120]
[347477770,1735856033686,150.010307,0.0002,120]
[347477771,1735856033822,150.010307,0.0002,120]
[347477772,1735856034092,150.010307,0.0002,120]
[347477773,1735856034363,150.010307,0.0002,120]
[347477774,1735856034836,150.010307,0.0002,120]
[347477775,1735856035367,150.010307,0.0002,120]
[347477776,1735856035728,150.010307,0.0002,120]
[347477777,1735856036179,150.010307,0.0002,120]
[347477778,1735856036582,150.010307,0.0002,120]
[347477779,1735856037232,150.010307,0.0002,120]
[347477780,1735856037436,150.010307,0.0002,120]
[347477781,1735856037897,150.010307,0.0002,120]
[347477782,1735856038336,150.010307,0.0002,120]
[347477783,1735856038793,150.010307,0.0002,120]
[347477784,1735856039660,150.010307,0.0002,120]
[347477785,1735856040591,150.010307,0.0002,120]
[347477786,1735856041049,150.010307,0.0002,120]
[347477787,1735856041490,150.010307,0.0002,120]
[347477788,1735856041924,150.010307,0.0002,120]
[347477789,1735856042346,150.010307,0.0002,120]
[347477790,1735856042766,150.010307,0.0002,120]
[347477791,1735856043332,150.010307,0.0002,120]
[347477792,1735856044371,150.010307,0.0002,120]
[347477793,1735856044504,150.010307,0.0002,120]
[347477794,1735856044654,150.010307,0.0002,120]
[347477795,1735856045005,150.010307,0.0002,120]
[347477796,1735856045439,150.010307,0.0002,120]
[347477797,1735856045493,150.010307,0.0002,120]
[347477798,1735856045543,150.010307,0.0002,120]
[347477799,1735856045878,150.010307,0.0002,120]
[347477800,1735856046488,150.010307,0.0002,120]
[347477801,1735856046841,150.010307,0.0002,120]
[347477802,1735856047234,150.010307,0.0002,120]
[347477803,1735856047675,150.010307,0.0002,120]
[347477804,1735856048273,150.010307,0.0002,120]
[347477805,1735856048555,150.010307,0.0002,120]
[347477806,1735856049288,150.010307,0.0002,120]
[347477807,1735856049525,150.010307,0.0002,120]
[347477808,1735856049900,150.010307,0.0002,120]
[347477809,1735856050383,150.010307,0.0002,120]
[347477810,1735856050863,150.010307,0.0002,120]
[347477811,1735856051311,150.010307,0.0002,120]
[347477812,1735856051780,150.010307,0.0002,120]
[347477813,1735856052228,150.010307,0.0002,120]
[347477814,1735856052749,150.010307,0.0002,120]
[347477815,1735856053316,150.010307,0.0002,120]
[347477816,1735856053599,150.010307,0.0002,120]
[347477817,1735856053991,150.010307,0.0002,120]
[347477818,1735856055129,250.0,8.893e-05,2]
[347477819,1735856061850,150.010307,0.0002,120]
[347477820,1735856062062,150.010307,0.0002,120]
[347477821,1735856062359,150.010307,0.0002,120]
[347477822,1735856062794,150.010307,0.0002,120]
[347477823,1735856063219,150.010307,0.0002,120]
[347477824,1735856063610,150.010307,0.0002,120]
[347477825,1735856064024,150.010307,0.0002,120]
[347477826,1735856064447,150.010307,0.0002,120]
[347477827,1735856065477,150.010307,0.0002,120]
[347477828,1735856065595,150.010307,0.0002,120]
[347477829,1735856066093,150.010307,0.0002,120]
[347477830,1735856066271,150.010307,0.0002,120]
[347477831,1735856066640,150.010307,0.0002,120]
[347477832,1735856067102,150.010307,0.0002,120]
[347477833,1735856067516,150.010307,0.0002,120]
[347477834,1735856067976,150.010307,0.0002,120]
[347477835,1735856068441,150.010307,0.0002,120]
[347477836,1735856068838,150.010307,0.0002,120]
[347477837,1735856069237,150.010307,0.0002,120]
[347477838,1735856069658,150.010307,0.0002,120]
[347477839,1735856070080,150.010307,0.0002,120]
[347477840,1735856070509,150.010307,0.0002,120]
[347477841,1735856070949,150.010307,0.0002,120]
[347477842,1735856071370,150.010307,0.0002,120]
[347477843,1735856071852,150.010307,0.0002,120]
[347477844,1735856072288,150.010307,0.0002,120]
[347477845,1735856072691,150.010307,0.0002,120]
[347477846,1735856073125,150.010307,0.0002,120]
[347477847,1735856073554,150.010307,0.0002,120]
[347477848,1735856074020,150.010307,0.0002,120]
[347477849,1735856076687,1000.0,0.0002,120]
[347477851,1735856083228,1000.0,9.6e-05,2]
[347477852,1735856095816,1239.233,9.514e-05,2]
[347477853,1735856105119,250.0,8.888e-05,2]
[347477854,1735856126047,1000.0,0.0001712,59]
[347477855,1735856127587,1000.0,0.0001712,60]
[347477856,1735856132040,5000.0,9.514e-05,2]
[347477857,1735856149366,1000.0,0.0001712,61]
[347477858,1735856151474,1000.0,0.0001712,62]
[347477859,1735856166663,166.15,7.112e-05,2]
[347477860,1735856190469,762.7447,9.514e-05,2]
[347477861,1735856194085,250.0,8.895e-05,2]
[347477865,1735856230549,2500.0,9.514e-05,2]
[347477866,1735856236293,719.11,8.903e-05,2]
[347477867,1735856248593,1410.47,8.219e-05,2]
[347477870,1735856370547,165.74,8.885e-05,2]
[347477871,1735856420878,200.0,8.871e-05,2]
[347477872,1735856448500,150.0,9.382e-05,2]
[347477873,1735856448698,150.0,9.454e-05,2]
[347477874,1735856448784,150.0,9.526e-05,2]
[347477875,1735856507624,150.0,9.347e-05,2]
[347477876,1735856507812,150.0,9.428e-05,2]
[347477877,1735856507891,150.0,9.44e-05,2]
[347477878,1735856534393,1000.0,9.6e-05,2]
[347477879,1735856537990,1000.0,8.853e-05,2]
[347477880,1735856562635,-300.0,9.607e-05,2]
[347477881,1735856562657,-1712.6583226,9.608e-05,2]
[347477882,1735856562680,-3140.2167006,9.608e-05,2]
[347477883,1735856562702,-268.717515,9.608e-05,2]
[347477884,1735856562724,-2782.5327543,9.608e-05,2]
[347477885,1735856562747,-500.0,9.613e-05,2]
[347477886,1735856562768,-673.0,9.614e-05,2]
[347477887,1735856562792,-500.0,9.614e-05,2]
[347477888,1735856562819,-2761073.38402079,9.614e-05,2]
[347477889,1735856562842,-500.0,9.614e-05,2]
[347477890,1735856562864,-500.0,9.641e-05,2]
[347477891,1735856562886,-500.0,9.669e-05,2]
[347477892,1735856562910,-500.0,9.696e-05,2]
[347477893,1735856562931,-441.0,9.7e-05,2]
[347477894,1735856562953,-437.58,9.71e-05,2]
[347477895,1735856562975,-771.56,9.71e-05,2]
[347477896,1735856562997,-771.56,9.71e-05,2]
[347477897,1735856563019,-1955.11,9.71e-05,2]
[347477898,1735856563041,-771.56,9.71e-05,2]
[347477899,1735856563064,-1606.97,9.71e-05,2]
[347477900,1735856563087,-239.65,9.71e-05,2]
[347477901,1735856563109,-8937.96,9.71e-05,2]
[347477902,1735856563130,-299.99,9.71e-05,2]
[347477903,1735856563152,-150.99,9.71e-05,2]
[347477904,1735856563540,-1536.64,9.71e-05,2]
[347477905,1735856563562,-150.0,9.71e-05,2]
[347477906,1735856563585,-150.0,9.71e-05,2]
[347477907,1735856563606,-303.87,9.71e-05,2]
[347477908,1735856563630,-524.92,9.71e-05,2]
[347477909,1735856563653,-771.56,9.71e-05,2]
[347477910,1735856563676,-182.74,9.71e-05,2]
[347477911,1735856563696,-1957.1,9.71e-05,2]
[347477912,1735856563717,-894.68,9.71e-05,2]
[347477913,1735856563741,-150.0,9.71e-05,2]
[347477914,1735856563763,-150.0,9.71e-05,2]
[347477915,1735856563785,-771.56,9.71e-05,2]
[347477916,1735856563807,-978.28,9.71e-05,2]
[347477917,1735856563829,-150.0,9.71e-05,2]
[347477918,1735856563851,-437.58,9.71e-05,2]
[347477919,1735856563874,-300.0,9.71e-05,2]
[347477920,1735856563895,-500.0,9.723e-05,2]
[347477921,1735856563918,-500.0,9.743e-05,2]
[347477922,1735856563940,-165.70094511,9.743e-05,2]
[347477923,1735856563961,-164.28074306,9.743e-05,2]
[347477924,1735856563981,-161.60175333,9.743e-05,2]
[347477925,1735856564006,-500.0,9.743e-05,2]
[347477926,1735856564027,-289.68800978,9.743e-05,2]
[347477927,1735856564050,-260.37075057,9.743e-05,2]
[347477928,1735856564071,-500.0,9.743e-05,2]
[347477929,1735856564093,-162.07287021,9.743e-05,2]
[347477930,1735856564114,-471.41130893,9.743e-05,2]
[347477931,1735856564136,-200.74053682,9.743e-05,2]
[347477932,1735856564157,-500.0,9.743e-05,2]
[347477933,1735856564179,-500.0,9.75e-05,2]
[347477934,1735856564202,-500.0,9.751e-05,2]
[347477935,1735856564230,-5613788.90148813,9.77e-05,2]
[347477936,1735856564252,-771.56,9.77e-05,2]
[347477937,1735856564274,-150.0,9.77e-05,2]
[347477938,1735856564296,-437.58,9.77e-05,2]
[347477939,1735856564318,-150.0,9.77e-05,2]
[347477940,1735856564340,-150.0,9.77e-05,2]
[347477941,1735856564366,-150.0,9.77e-05,2]
[347477942,1735856564389,-437.58,9.77e-05,2]
[347477943,1735856564411,-771.56,9.77e-05,2]
[347477944,1735856564433,-150.0,9.77e-05,2]
[347477945,1735856564454,-771.56,9.77e-05,2]
[347477946,1735856564475,-150.0,9.77e-05,2]
[347477947,1735856564497,-437.58,9.77e-05,2]
[347477948,1735856564519,-771.56,9.77e-05,2]
[347477949,1735856564539,-150.0,9.77e-05,2]
[347477950,1735856564561,-437.58,9.77e-05,2]
[347477951,1735856564582,-194.80259166,9.77e-05,2]
[347477952,1735856564603,-3363.66755225,9.77e-05,2]
[347477953,1735856564624,-500.0,9.778e-05,2]
[347477954,1735856564645,-169.297617,9.782e-05,2]
[347477955,1735856564665,-200.0,9.789e-05,2]
[347477956,1735856564686,-152.24,9.79e-05,2]
[347477957,1735856564707,-771.56,9.79e-05,2]
[347477958,1735856564728,-437.58,9.79e-05,2]
[347477959,1735856564750,-1000.0,9.8e-05,2]
[347477960,1735856564773,-500.0,9.887e-05,2]
[347477961,1735856564794,-429.49349722,9.898e-05,2]
[347477962,1735856564814,-1000.0,9.9e-05,2]
[347477963,1735856564836,-1094.078,9.957e-05,2]
[347477964,1735856564857,-1000.0,9.96e-05,2]
[347477965,1735856564878,-5855.24091344,9.97e-05,2]
[347477966,1735856564899,-314.73196938,9.971e-05,2]
[347477967,1735856564921,-810.25056011,9.971e-05,2]
[347477968,1735856564943,-2037.83556648,9.971e-05,2]
[347477969,1735856564964,-273.11991611,9.973e-05,2]
[347477970,1735856564987,-314.73196938,9.974e-05,2]
[347477971,1735856565009,-273.11991611,9.975e-05,2]
[347477972,1735856565031,-273.11991611,9.976e-05,2]
[347477973,1735856565053,-417.86037568,9.976e-05,2]
[347477974,1735856565075,-314.73196938,9.977e-05,2]
[347477975,1735856565097,-5855.24091344,9.977e-05,2]
[347477976,1735856565118,-200.0,9.978e-05,2]
[347477977,1735856565141,-273.11991611,9.978e-05,2]
[347477978,1735856565163,-2037.83556648,9.98e-05,2]
[347477979,1735856565185,-5855.24091344,9.982e-05,2]
[347477980,1735856565207,-417.86037568,9.983e-05,2]
[347477981,1735856565231,-5855.24091344,9.984e-05,2]
[347477982,1735856565253,-909.89728036,9.984e-05,2]
[347477983,1735856565276,-909.89728036,9.986e-05,2]
[347477984,1735856565297,-2068.2106282,9.986e-05,2]
[347477985,1735856565319,-5855.24091344,9.986e-05,2]
[347477986,1735856565343,-2037.83556648,9.988e-05,2]
[347477987,1735856565366,-417.86037568,9.989e-05,2]
[347477988,1735856565390,-273.11991611,9.99e-05,2]
[347477989,1735856565413,-810.25056011,9.99e-05,2]
[347477990,1735856565440,-2690985.86241984,9.99e-05,2]
[347477991,1735856565462,-310.0,9.99e-05,2]
[347477992,1735856565483,-310.0,9.99e-05,2]
[347477993,1735856565505,-310.0,9.99e-05,2]
[347477994,1735856565527,-310.0,9.99e-05,2]
[347477995,1735856565550,-310.0,9.99e-05,2]
[347477996,1735856565572,-310.0,9.99e-05,2]
[347477997,1735856565593,-310.0,9.99e-05,2]
[347477998,1735856565615,-310.0,9.99e-05,2]
[347477999,1735856565639,-310.0,9.99e-05,2]
[347478000,1735856565661,-310.0,9.99e-05,2]
[347478001,1735856565683,-310.0,9.99e-05,2]
[347478002,1735856565707,-310.0,9.99e-05,2]
[347478003,1735856565730,-310.0,9.99e-05,2]
[347478004,1735856565752,-310.0,9.99e-05,2]
[347478005,1735856565773,-310.0,9.99e-05,2]
[347478006,1735856565795,-310.0,9.99e-05,2]
[347478007,1735856565818,-310.0,9.99e-05,2]
[347478008,1735856565840,-310.0,9.99e-05,2]
[347478009,1735856565862,-202.0,9.99e-05,2]
[347478010,1735856565885,-202.0,9.99e-05,2]
[347478011,1735856565906,-202.0,9.99e-05,2]
[347478012,1735856565929,-202.0,9.99e-05,2]
[347478013,1735856565953,-202.0,9.99e-05,2]
[347478014,1735856565976,-202.0,9.99e-05,2]
[347478015,1735856565998,-202.0,9.99e-05,2]
[347478016,1735856566024,-202.0,9.99e-05,2]
[347478017,1735856566047,-202.0,9.99e-05,2]
[347478018,1735856566068,-202.0,9.99e-05,2]
[347478019,1735856566089,-205.0,9.99e-05,2]
[347478020,1735856566111,-202.0,9.99e-05,2]
[347478021,1735856566132,-205.0,9.99e-05,2]
[347478022,1735856566153,-202.0,9.99e-05,2]
[347478023,1735856566175,-205.0,9.99e-05,2]
[347478024,1735856566195,-202.0,9.99e-05,2]
[347478025,1735856566217,-205.0,9.99e-05,2]
[347478026,1735856566239,-205.0,9.99e-05,2]
[347478027,1735856566262,-205.0,9.99e-05,2]
[347478028,1735856566284,-205.0,9.99e-05,2]
[347478029,1735856566305,-205.0,9.99e-05,2]
[347478030,1735856566327,-205.0,9.99e-05,2]
[347478031,1735856566350,-205.0,9.99e-05,2]
[347478032,1735856566372,-205.0,9.99e-05,2]
[347478033,1735856566394,-205.0,9.99e-05,2]
[347478034,1735856566416,-205.0,9.99e-05,2]
[347478035,1735856566438,-205.0,9.99e-05,2]
[347478036,1735856566460,-205.0,9.99e-05,2]
[347478037,1735856566483,-205.0,9.99e-05,2]
[347478038,1735856566505,-204.0,9.99e-05,2]
[347478039,1735856566526,-204.0,9.99e-05,2]
[347478040,1735856566548,-204.0,9.99e-05,2]
[347478041,1735856566569,-204.0,9.99e-05,2]
[347478042,1735856566592,-204.0,9.99e-05,2]
[347478043,1735856566615,-204.0,9.99e-05,2]
[347478044,1735856566636,-204.0,9.99e-05,2]
[347478045,1735856566659,-204.0,9.99e-05,2]
[347478046,1735856566681,-204.0,9.99e-05,2]
[347478047,1735856566703,-204.0,9.99e-05,2]
[347478048,1735856566724,-441.0,9.99e-05,2]
[347478049,1735856566746,-441.0,9.99e-05,2]
[347478050,1735856566768,-441.0,9.99e-05,2]
[347478051,1735856566790,-441.0,9.99e-05,2]
[347478052,1735856566813,-441.0,9.99e-05,2]
[347478053,1735856566837,-441.0,9.99e-05,2]
[347478054,1735856566859,-441.0,9.99e-05,2]
[347478055,1735856567096,-441.0,9.99e-05,2]
[347478056,1735856567120,-441.0,9.99e-05,2]
[347478057,1735856567141,-441.0,9.99e-05,2]
[347478058,1735856567163,-441.0,9.99e-05,2]
[347478059,1735856567186,-441.0,9.99e-05,2]
[347478060,1735856567208,-441.0,9.99e-05,2]